{"text_format":"3","workbook":"xlsx","n_sheets":1,"sheets":["Τιμολόγιο"],"not_rendered":{"images":1,"defined_names":14},"read":"whole","date_system":"1900"}

{"sheet":"Τιμολόγιο","index":0,"n_rows":33,"n_cols":6,"rows_kept":33,"merged":[[0,1,0,5],[1,1,1,5],[9,1,9,5],[10,1,10,2],[10,3,11,4],[10,5,11,5],[11,1,11,2],[12,1,12,2],[12,3,13,4],[12,5,13,5],[13,1,13,2],[14,1,14,2],[29,1,29,2],[30,1,31,2],[32,1,32,2]]}
[null,"ΤΙΜΟΛΟΓΙΟ"]
[null,"Επωνυμία εταιρείας"]
[]
[null,"Λεωφόρος Α 321",null,null,"Ημερομηνία:",{"$f":"TODAY()","v":"2022-12-27"}]
[null,"Πόρτλαντ, ΤΚ 12345",null,null,"Αρ. τιμολογίου",1111]
[null,"Τηλέφωνο: (206) 555-1163",null,null,"Για","Αρ. ΔΠ 123456"]
[null,"Φαξ: (206) 555-1164"]
[null,"someone@websitegoeshere.com"]
[]
[null,"Τιμολόγηση σε:"]
[null,"Νατάσα Στεφάνου",null,"Τα είδη επάνω από αυτό το ποσό πληρούν τις προϋποθέσεις για επιπλέον έκπτωση",null,{"v":100,"d":"100 €"}]
[null,"Central Beauty"]
[null,"Συγγρού 123",null,"% έκπτωσης",null,{"v":0.1,"d":"10%"}]
[null,"Πλάκα Αθήνα 12345"]
[null,"(321) 555-1234"]
[]
[null,"Ποσότητα","Περιγραφή","Τιμή μονάδας","Ποσό","Έκπτωση που εφαρμόστηκε"]
[null,1,"Αρ. είδους 1",{"v":2,"d":"2.00 €"},{"$f":"Ποσό","v":{"v":2,"d":"2.00 €"}},{"$f":"Εφαρμοζόμενη_έκπτωση","v":0}]
[null,1,"Αρ. είδους 2",{"v":2,"d":"2.00 €"},{"$f":"Ποσό","v":{"v":2,"d":"2.00 €"}},{"$f":"Εφαρμοζόμενη_έκπτωση","v":0}]
[null,1,"Αρ. είδους 3",{"v":2,"d":"2.00 €"},{"$f":"Ποσό","v":{"v":2,"d":"2.00 €"}},{"$f":"Εφαρμοζόμενη_έκπτωση","v":0}]
[{"$nulls":4},{"$f":"Ποσό","v":0},{"$f":"Εφαρμοζόμενη_έκπτωση","v":0}]
[{"$nulls":4},{"$f":"Ποσό","v":0},{"$f":"Εφαρμοζόμενη_έκπτωση","v":0}]
[{"$nulls":4},{"$f":"Ποσό","v":0},{"$f":"Εφαρμοζόμενη_έκπτωση","v":0}]
[{"$nulls":4},{"$f":"Ποσό","v":0},{"$f":"Εφαρμοζόμενη_έκπτωση","v":0}]
[{"$nulls":4},{"$f":"Ποσό","v":0},{"$f":"Εφαρμοζόμενη_έκπτωση","v":0}]
[{"$nulls":4},{"$f":"Ποσό","v":0},{"$f":"Εφαρμοζόμενη_έκπτωση","v":0}]
[{"$nulls":4},{"$f":"Ποσό","v":0},{"$f":"Εφαρμοζόμενη_έκπτωση","v":0}]
[{"$nulls":4},{"$f":"Ποσό","v":0},{"$f":"Εφαρμοζόμενη_έκπτωση","v":0}]
[null,"Μερικό άθροισμα",null,null,{"$f":"SUBTOTAL(109,ΣτοιχείαΤιμολογίου[Ποσό])","v":{"v":6,"d":"6.00 €"}}]
[null,"Όλες οι επιταγές πρέπει να είναι πληρωτέες στο <Όνομα εταιρείας>.",null,"Πιστωτικό ",{"v":1000,"d":"1,000.00 €"}]
[null,"Εάν έχετε οποιεσδήποτε απορίες αναφορικά με αυτό το τιμολόγιο, επικοινωνήστε με τον <Όνομα υπευθύνου>, στο <αρ. τηλεφώνου ή email>.\n",null,"Φόρος ",{"v":0.098,"d":"9.80%"}]
[{"$nulls":3},"Πρόσθετη έκπτωση ",{"v":0.12,"d":"12%"}]
[null,"Ευχαριστούμε για την προτίμησή σας!",null,"Οφειλόμενο υπόλοιπο ",{"$f":"Οφειλόμενο_υπόλοιπο","v":{"v":-994.20256,"d":"-994.20 €"}}]